Cogmind - Beta 11.1 @@@ ROGUE MODE // 2022.05.17 @ 12:42:17 Player: ChromeKnight Result: Self-destructed Performance ------------- Evolutions (3) 1500 Regions Visited (5) 1000 Robots Destroyed (22) 110 Value Destroyed (432) 432 Prototype IDs (6) 120 Alien Tech Used (0) 0 Bonus (467) 467 TOTAL SCORE: 3629 Bonus ------- Follower Combat Kills 566 Friendly Fire -99 Cogmind --------- Core Integrity 700/700 Matter 109/300 Energy 150/150 System Corruption 0% Temperature Warm (179) Movement Flying (31) Location -7/Factory Parts ------- > --- POWER (1) -------- Micro Nuclear Core > --- PROPULSION (4) --- Improved Flight Unit Improved Flight Unit Improved Flight Unit Improved Flight Unit > --- UTILITY (6) ------ Light Regenerative Plating Light Regenerative Plating Hacking Suite Hacking Suite > --- WEAPON (2) ------- Mini Assault Cannon Improved Datajack > --- INVENTORY (5) ---- Micro Nuclear Core Light Regenerative Plating Light Regenerative Plating Hardlight Generator Mini Assault Cannon Peak State ------------ > --- POWER ------------ Micro Nuclear Core > --- PROPULSION ------- Improved Flight Unit Improved Flight Unit Improved Flight Unit Improved Flight Unit > --- UTILITY ---------- Light Regenerative Plating Light Regenerative Plating Hacking Suite Hacking Suite > --- WEAPON ----------- Mini Assault Cannon Improved Datajack > --- INVENTORY -------- Micro Nuclear Core Improved Flight Unit Light Regenerative Plating Light Regenerative Plating Mini Assault Cannon [Rating: 44] Favorites ----------- Power Ion Engine Engine Ion Engine Power Core Micro Nuclear Core Propulsion Light Treads Treads Light Treads Flight Unit Improved Flight Unit Utility Small Storage Unit Device Disposable Heat Sink Storage Small Storage Unit Processor Visual Processing Unit Hackware Hacking Suite Protection Light Regenerative Plating Weapon Improved Assault Rifle Energy Gun Particle Gun Ballistic Gun Improved Assault Rifle Ballistic Cannon Mini Assault Cannon Special Melee Weapon Improved Datajack Build | -11 -10 -9 -9 -8 -7 ------- Run | Scr Mat Mat Sto Mat Fac Slots Evolved 6 | . . 2 . 2 2 Power . | . . . . . . Propulsion 2 | . . . . 1 1 Utility 4 | . . 2 . 1 1 Weapon . | . . . . . . Parts Attached 40 | 5 5 3 19 2 6 Power 6 | 1 1 . 3 . 1 Engine 5 | 1 1 . 3 . . Core 1 | . . . . . 1 Reactor . | . . . . . . Propulsion 11 | 2 . . 6 1 2 Treads 6 | 2 . . 4 . . Leg . | . . . . . . Wheel . | . . . . . . Hover . | . . . . . . Flight 5 | . . . 2 1 2 Utility 12 | 1 1 3 5 1 1 Device 3 | . 1 1 1 . . Storage 1 | 1 . . . . . Processor 2 | . . 2 . . . Hackware 2 | . . . 1 1 . Protection 4 | . . . 3 . 1 Artifact . | . . . . . . Weapon 11 | 1 3 . 5 . 2 Energy Gun 3 | . 2 . 1 . . Energy Cannon . | . . . . . . Ballistic Gun 4 | 1 1 . 2 . . Ballistic Cannon 3 | . . . 2 . 1 Launcher . | . . . . . . Special Weapon . | . . . . . . Impact Weapon . | . . . . . . Slashing Weapon . | . . . . . . Piercing Weapon . | . . . . . . Special Melee Weapon 1 | . . . . . 1 Unidentified Prototypes 4 | . . . 4 . . Parts Lost . | . . . . . . Power . | . . . . . . Propulsion . | . . . . . . Utility . | . . . . . . Weapon . | . . . . . . Highest Loss Streak . | . . . . . . To Critical Strikes . | . . . . . . Average Slot Usage (%) 92 | . 84 93 96 72 78 Engine 10 | . 14 11 11 9 . Treads 18 | . 28 22 17 . . Flight 5 | . . . 4 25 30 Device 8 | . 7 14 8 . . Storage 10 | . 14 11 11 9 . Processor 7 | . . 12 9 . . Hackware 2 | . . . 2 16 15 Protection 9 | . . . 12 10 13 Energy Gun 4 | . 3 22 3 . . Ballistic Gun 12 | . 16 . 13 . . Ballistic Cannon 1 | . . . 1 1 7 Naked Turns . | . . . . . . Heaviest Build 24 | 11 17 18 24 22 19 Greatest Support 40 | 40 40 40 40 15 20 Greatest Overweight (x) 2 | . . . 2 2 . Average Overweight (x) . | . . . . . . Largest Inventory Capacity 8 | 8 8 8 8 8 8 Average Capacity 7 | 7 8 8 8 8 5 Most Carried 8 | . 8 8 8 8 7 Average Carried 6 | . 3 7 7 7 5 Final Capacity 8 | 8 8 8 8 8 5 Final Carried 8 | . 8 8 8 7 5 Class Distribution -------------------- 90% | Mutant 4% | Hacker-Sprinter Dominant Class ---------------- Mutant | -10/Materials Mutant | -9/Materials Mutant | -9/Storage Hacker-Mutant | -8/Materials Hacker-Sprinter | -7/Factory Resources | -11 -10 -9 -9 -8 -7 ----------- Run | Scr Mat Mat Sto Mat Fac Matter Collected 776 | 215 97 70 391 . 3 Remotely . | . . . . . . Salvage Created 759 | . 162 141 454 . 2 Parts 48 | . 18 8 21 . 1 Haulers Intercepted 5 | . . . 5 . . Recyclers Shooed 4 | . 3 . 1 . . Parts Field Recycled . | . . . . . . Retrieved Matter . | . . . . . . Parts Self-Destructed . | . . . . . . Prevented . | . . . . . . Kills | -11 -10 -9 -9 -8 -7 ------- Run | Scr Mat Mat Sto Mat Fac Combat Hostiles Destroyed 7 | . 4 . 3 . . Guns 6 | . 4 . 2 . . Classes Destroyed 7 | . 2 2 3 . . Worker 1 | . . . 1 . . Hauler 5 | . . . 5 . . Recycler 2 | . . 1 1 . . Operator 5 | . 1 . 3 . 1 Watcher 2 | . . 2 . . . Grunt 6 | . 4 . 2 . . Sentry 1 | . . . 1 . . Best Kill Streak 3 | . 2 1 3 . 1 Combat Bots Only 2 | . 2 . 2 . . Max Kills in Single Turn 1 | . 1 1 1 . 1 Gunslinging . | . . . . . . Exploded . | . . . . . . Melee . | . . . . . . Uniques/NPCs Destroyed . | . . . . . . Combat | -11 -10 -9 -9 -8 -7 -------- Run | Scr Mat Mat Sto Mat Fac Damage Taken 846 | . 427 . 317 84 18 Core 161 | . 97 . 40 24 . Absorbed by Shields . | . . . . . . Regen/Repaired (Parts) 54 | . . . 26 12 16 Core Remaining (%) 86 | 100 61 . 90 95 . Volleys Fired 117 | . 44 4 50 . 19 Largest 2 | . 2 2 2 . 1 Hottest 130 | . 40 130 130 . 48 Shots Fired 174 | . 52 8 95 . 19 Gun 149 | . 52 8 89 . . Cannon 25 | . . . 6 . 19 Launcher . | . . . . . . Special . | . . . . . . Kinetic 128 | . 52 . 57 . 19 Thermal 46 | . . 8 38 . . Explosive . | . . . . . . Electromagnetic . | . . . . . . Robot Hit Streak 17 | . 10 11 17 . 3 Robot Miss Streak 4 | . 3 1 2 . 4 Penetration Max . | . . . . . . Secondary Targets . | . . . . . . Shots Hit Robots 121 | . 38 5 72 . 6 Core Hits 34 | . 12 3 18 . 1 Critical Kills . | . . . . . . Critical Parts Destroyed . | . . . . . . Critical Strikes . | . . . . . . Melee Attacks . | . . . . . . Impact . | . . . . . . Slashing . | . . . . . . Piercing . | . . . . . . Sneak Attacks . | . . . . . . Combat Hostiles . | . . . . . . Follow-up Attacks . | . . . . . . Damage Inflicted 1656 | . 305 80 1159 . 112 Guns 1402 | . 305 80 1017 . . Cannons 245 | . . . 133 . 112 Explosions . | . . . . . . Melee . | . . . . . . Ramming 9 | . . . 9 . . Kinetic 1163 | . 305 . 746 . 112 Thermal 484 | . . 80 404 . . Explosive . | . . . . . . Electromagnetic . | . . . . . . Impact . | . . . . . . Slashing . | . . . . . . Piercing . | . . . . . . Highest Corruption 1 | . . . 1 . . Average Corruption 1 | . . . 1 . . Corruption Purged . | . . . . . . Corruption Blocked . | . . . . . . Effects 10 | . . . 10 . . Message Errors 2 | . . . 2 . . Matter Fused 3 | . . . 3 . . Energy Discharges 1 | . . . 1 . . Data Loss (minor) 3 | . . . 3 . . Misfires 1 | . . . 1 . . Overload Shots . | . . . . . . Overflow Damage 6 | . . . . . 6 Projectiles 6 | . . . . . 6 Explosions . | . . . . . . Melee . | . . . . . . Knockbacks 2 | . . . . . 2 Impact . | . . . . . . Kinetic 2 | . . . . . 2 Secondary . | . . . . . . Self-Inflicted Damage . | . . . . . . Shots . | . . . . . . Rammed 2 | . . . 2 . . Targets Rammed 2 | . . . 2 . . Kicked . | . . . . . . Crushed . | . . . . . . Highest Temperature 352 | . 6 60 197 . 352 Average Temperature 144 | . 6 25 94 . 222 Received Heat Transfer 393 | . 234 . 150 9 . Effects 3 | . . . . . 3 Shutdowns 1 | . . . . . 1 Energy Bleed 1 | . . . . . 1 Short Circuit 1 | . . . . . 1 Siege Activations . | . . . . . . Robots Corrupted . | . . . . . . Combat Hostiles . | . . . . . . Parts Fried . | . . . . . . Impact Corruptions . | . . . . . . Robots Melted 1 | . . . 1 . . Combat Hostiles 1 | . . . 1 . . Parts Melted 5 | . . 1 4 . . Heat Transferred 1147 | . . 185 962 . . Parts Sabotaged . | . . . . . . Parts Stolen . | . . . . . . Parts Stripped . | . . . . . . Power Chain Reactions . | . . . . . . Missiles Intercepted . | . . . . . . Alert | -11 -10 -9 -9 -8 -7 ------- Run | Scr Mat Mat Sto Mat Fac Peak Influence 577 | . 120 49 577 238 195 Initial 176 | . . . 20 176 107 Average 223 | . 38 26 314 196 149 Maximum Alert Level 2 | . . . 2 1 . Low Security (%) 54 | 100 100 100 30 58 100 Level 1 15 | . . . 23 41 . Level 2 29 | . . . 45 . . Level 3 . | . . . . . . Level 4 . | . . . . . . Level 5 . | . . . . . . High Security . | . . . . . . Max Security . | . . . . . . Squads Dispatched 10 | . 4 . 4 . 2 Investigation 4 | . 2 . 1 . 1 Extermination . | . . . . . . Reinforcement 5 | . 2 . 2 . 1 Assault . | . . . . . . Garrison 1 | . . . 1 . . Intercept . | . . . . . . Searches Triggered . | . . . . . . Construction Impeded . | . . . . . . Haulers Reinforced . | . . . . . . Active Scanning Responses . | . . . . . . Cargo Convoy Interrupts . | . . . . . . Stealth | -11 -10 -9 -9 -8 -7 --------- Run | Scr Mat Mat Sto Mat Fac Distress Signals 2 | . . . . . 2 Communications Jammed . | . . . . . . Distress Signals . | . . . . . . Times Spotted 60 | . 9 2 34 9 6 Peak Tracking Total 6 | . 3 1 5 6 5 Tactical Retreats 2 | . . . 1 1 . Traps | -11 -10 -9 -9 -8 -7 ------- Run | Scr Mat Mat Sto Mat Fac Traps Triggered 3 | . 1 . 2 . . Indirectly . | . . . . . . Trap Hack Attempts . | . . . . . . Triggered . | . . . . . . Disarmed 1 | . . . 1 . . Reprogrammed . | . . . . . . Reused . | . . . . . . Traps Extracted . | . . . . . . Installed . | . . . . . . Triggered . | . . . . . . Machines | -11 -10 -9 -9 -8 -7 ---------- Run | Scr Mat Mat Sto Mat Fac Machines Disabled 4 | . . . 2 1 1 Max in Single Turn 1 | . . . 1 . 1 Garrison Access 1 | . . . 1 . . Machines Sabotaged . | . . . . . . Garrisons Compromised . | . . . . . . Overloaded Fab Kills . | . . . . . . Hacking | -11 -10 -9 -9 -8 -7 --------- Run | Scr Mat Mat Sto Mat Fac Machines Accessed 11 | . 1 1 7 . 2 Terminals 10 | . 1 1 6 . 2 Fabricators . | . . . . . . Repair Stations . | . . . . . . Recycling Units . | . . . . . . Scanalyzers . | . . . . . . Garrison Access 1 | . . . 1 . . Total Hacks 22 | . 2 2 14 . 4 Successful 8 | . . . 8 . . Failed 14 | . 2 2 6 . 4 Catastrophic 2 | . . 1 . . 1 Database Lockouts . | . . . . . . Manual 8 | . 2 . 2 . 4 Terminals 21 | . 2 2 13 . 4 Fabricators . | . . . . . . Repair Stations . | . . . . . . Recycling Units . | . . . . . . Scanalyzers . | . . . . . . Garrison Access 1 | . . . 1 . . Terminal Hacks 7 | . . . 7 . . Robot Schematic 1 | . . . 1 . . Prototype ID Bank 1 | . . . 1 . . Open Door 3 | . . . 3 . . Disarm Traps 1 | . . . 1 . . Hauler Manifests 1 | . . . 1 . . Fabricator Hacks . | . . . . . . Repair Station Hacks . | . . . . . . Recycling Unit Hacks . | . . . . . . Scanalyzer . | . . . . . . Garrison Access Hacks 1 | . . . 1 . . Seal Access 1 | . . . 1 . . Unauthorized Hacks . | . . . . . . Terminals . | . . . . . . Fabricators . | . . . . . . Repair Stations . | . . . . . . Recycling Units . | . . . . . . Scanalyzers . | . . . . . . Garrison Access . | . . . . . . Data Cores Recovered 1 | . . . 1 . . Used 1 | . . . 1 . . Hacking Detections 6 | . 1 1 2 . 2 Full Trace Events 2 | . 1 . . . 1 Feedback Events . | . . . . . . Feedback Blocked . | . . . . . . Robot Schematics Acquired 1 | . . . 1 . . Robots Built . | . . . . . . Authchips . | . . . . . . Time . | . . . . . . Total Robot Build Rating . | . . . . . . Part Schematics Acquired . | . . . . . . Parts Built . | . . . . . . Authchips . | . . . . . . Time . | . . . . . . Total Part Build Rating . | . . . . . . Parts Repaired . | . . . . . . Time . | . . . . . . Parts Recycled . | . . . . . . Recycled Matter . | . . . . . . Retrieved Matter . | . . . . . . Retrieved Components . | . . . . . . Parts Scanalyzed . | . . . . . . Part Schematics Acquired . | . . . . . . Parts Damaged . | . . . . . . Bothacking | -11 -10 -9 -9 -8 -7 ------------ Run | Scr Mat Mat Sto Mat Fac Used RIF Installer . | . . . . . . Robots Hacked . | . . . . . . Non-combat . | . . . . . . Combat . | . . . . . . Robot Hacks Applied . | . . . . . . Relay Couplers Released . | . . . . . . Fabnet Peak Effective % . | . . . . . . Robots Rewired . | . . . . . . Allies Hacked . | . . . . . . Hacks Repelled . | . . . . . . Allies | -11 -10 -9 -9 -8 -7 -------- Run | Scr Mat Mat Sto Mat Fac Total Allies 3 | . . . 3 . . Largest Group 3 | . . . 3 3 . Highest-Rated Group 125 | . . . 125 125 . Highest-Rated Ally 100 | . . . 100 95 . Total Orders . | . . . . . . Ally Attacks 63 | . . . 52 11 . Total Damage 1733 | . . . 1527 206 . Kills 24 | . . . 22 2 . Allies Corrupted . | . . . . . . Allies Melted . | . . . . . . Intel | -11 -10 -9 -9 -8 -7 ------- Run | Scr Mat Mat Sto Mat Fac Robot Analysis Total . | . . . . . . Derelict Logs Recovered . | . . . . . . Drone Launches . | . . . . . . Drone Recoveries . | . . . . . . Exploration | -11 -10 -9 -9 -8 -7 ------------- Run | Scr Mat Mat Sto Mat Fac Turns Passed 2718 | 58 477 234 1748 48 153 Spaces Moved 1606 | 37 220 136 887 79 247 Core 7 | 7 . . . . . Treads 1050 | 30 220 136 664 . . Legs . | . . . . . . Wheels . | . . . . . . Hover . | . . . . . . Flight 549 | . . . 223 79 247 Fastest Speed 31 | 50 160 160 107 34 31 Average Speed 129 | 139 160 160 153 39 31 Slowest Speed 180 | 160 160 160 180 177 31 Overloaded Moves . | . . . . . . Propulsion Burnouts . | . . . . . . Robots Hopped 1 | . . . . 1 . Cave-ins Triggered . | . . . . . . Exploration Rate (%) 27 | 3 34 13 93 16 5 Regions Visited 5 Branch Regions 1 Pre-discovered Areas . | . . . . . . Known Exits Taken 1 | . . 1 . . . Unknown Exits Taken 4 | 1 1 . 1 1 . Scrap Searched . | . . . . . . Spaces Dug 2 | . . . . . 2 Terrain Destroyed 8 | . . . . . 8 Melee . | . . . . . . Projectile 8 | . . . . . 8 AOE . | . . . . . . Terrain Rammed . | . . . . . . Walls Destroyed . | . . . . . . Machines Disabled . | . . . . . . Actions | -11 -10 -9 -9 -8 -7 --------- Run | Scr Mat Mat Sto Mat Fac Total 2084 | 41 310 144 1190 95 304 Wait 249 | . 15 . 194 13 27 Move 1599 | 36 219 135 886 76 247 Hop 1 | . . . . 1 . Pick Up 30 | . 16 . 12 . 2 Fast Attach 22 | 5 4 3 8 . 2 Attach 11 | . . . 5 2 4 Detach 3 | . . 1 . 2 . Swap 7 | . 1 . 6 . . Drop 42 | . 11 1 26 1 3 Fire 117 | . 44 4 50 . 19 Melee . | . . . . . . Ram . | . . . . . . Kick . | . . . . . . Crush 2 | . . . 2 . . Escape Stasis 1 | . . . 1 . . Rewire . | . . . . . . Trap . | . . . . . . Miscellaneous . | . . . . . . Route ------- -11/Scrapyard -10/Materials -9/Materials -9/Storage (discovered 2 exits: [*Mat] / [*Rec]) -8/Materials -7/Factory History --------- Turn | Location | Event 6 | -11/Scrapyard | Discovered new exit (range 15) 59 | -11/Scrapyard | Entered Materials 314 | -10/Materials | Build established: Mutant 396 | -10/Materials | Discovered new exit (range 8) 536 | -10/Materials | Entered another Materials area 536 | -9/Materials | Evolved 2 slots: Utility x2 536 | -9/Materials | Discovered new exit (range 12) 759 | -9/Materials | Identified exit to Storage 770 | -9/Materials | Entered Storage 1071 | -9/Storage | Met 01-MTF 1181 | -9/Storage | Found Prototype Protection 1181 | -9/Storage | Identified Lgt. Regenerative Plating 1187 | -9/Storage | Found Lgt. Regenerative Plating 1190 | -9/Storage | Found Lgt. Regenerative Plating 1193 | -9/Storage | Found Corrupted Lgt. Regenerative Plating 1197 | -9/Storage | Found Lgt. Regenerative Plating 1624 | -9/Storage | Garrison activated, responded to threat 1687 | -9/Storage | Discovered new exit (range 14) 1880 | -9/Storage | Discovered new exit (range 6) 2518 | -9/Storage | Entered Materials 2518 | -8/Materials | Accompanied by 3 allies (01-MTF) 2518 | -8/Materials | Evolved 2 slots: Propulsion x1, Utility x1 2523 | -8/Materials | 01-MTF left 2563 | -8/Materials | Discovered new exit (range 8) 2566 | -8/Materials | Entered Factory 2566 | -7/Factory | Evolved 2 slots: Propulsion x1, Utility x1 2719 | -7/Factory | Self-destructed Last Messages --------------- 02622_ ALERT: Hostiles spotted, dispatching reinforcements to Terminal F011. 02625_ U-05 Engineer builds a Wall. 02626_ Destroyed Lgt. Deuterium Engine. 02626_ O-24 Administrator knocked back. 02634_ U-05 Engineer builds a Wall. 02636_ O-24 Administrator destroyed. 02638_ Acquired Imp. Datajack. 02640_ Acquired 2 matter. 02640_ Acquired 1 matter. 02647_ K-01 Serf collects debris. 02650_ Overheating: Energy bleed (-26). 02659_ Connecting with Terminal... 02677_ W-25 Informer sends out distress signal. 02692_ Power failure, Mic. Nuclear Core shutdown. 02693_ Imp. Flight Unit broken. 02693_ Overheating: Short circuit. 02701_ Dropped Broken Imp. Flight Unit. 02703_ Acquired Hardlight Generator. 02716_ W-25 Informer sends out distress signal. Map ----- +----------------------------------------------------+ | ??????????# # #????? | | ??????????# """"""" # """""" #????? | | ??????????# """"""" # """""" #????? | | ??????????# """"""" # """""" #????? | | ??????????# """"""" # """""" #????? | | ??????????# # #????? | | ??????????# #! * #????? | | ??????????############/#####+######???? | | ????????????????????## ### #???? | | ?????????????????#### #???? | | ?????????????????# ^ #???? | | ???# ############# ##??? | | ???# [[= """ T#??? | | ???# [[= """ ### #??? | | ?? [= """ #?# ##??? | | ???# ####### #?# #???? | | ???# #?????# #?# #???? | | ???? ??? #?????# ######## #?# #???? | | ????????##+####??# #??????# ###+####? | | ????????# #??# #??????# ## ]#? | | ????????# #??# #??????# ## #? | | ????????# ####+######## ## " ! #? | | ????????# ## ## ## " #? | | ????????# """## # # " "#? | | ????????# """## # = # " "#? | | ????????# """## @ ; " "#? | | ????????# ## """"""" # u # " T#? | | ????????# """## """"""" # s # " "#? | | ????????# ="""## """"""" #?#s### " "#? | | ????????# """"" """"""" #??w#?# " "#? | | ????????# ############???#?# #? | | ????????#######????????????????##+####? | | ??????????????????????????????? #???? | | ????????????????????????????? #???? | | ??????????????????????????? #???? | | ????????????????????????? #???? | | ??????????????????????? ##########???? | | ????????????????????? ???????????????? | | ????????????????????"?????????????????? | | ??????????????????????????????????????? | | ??????????????????????????????????????? | | ??????????????????????????????????????? | | ??????????????????????????????????????? | | ??????????????????????????????????????? | | ??????????????????????????????????????? | | ??????????????????????????????????????? | | ??????????????????????????????????????? | | ??????????????????????????????????????? | | ??????????????????????????????????????? | | ??????????????????????????????????????? | +----------------------------------------------------+ Best States ------------- Heat Dissipation 38 Coolant Potential 50 Energy Generation 15 Energy Capacity 250 Matter Stores 300 Matter Capacity 300 Sight Range 18 Terrain Scan Density 10 Armor Coverage 300 Evasion (%) 63 Recoil Reduction 2 Offensive Hacking 20 Item Schematics ----------------- None Robot Schematics ------------------ S-10 Pest | -9/Storage | Hacked Fabricated ------------ Nothing Alien Tech Used ----------------- None Achievements -------------- None Challenges ------------ None Game ------ Seed ElectronThermicStorm Manual? 0 Play Time 00:19:31 Cumulative 267.1 hours Start 2022.05.16 @ 12:39:06 End 2022.05.17 @ 12:42:17 Sessions 3 Manual Loads 0 Difficulty Rogue Special Mode None Game No. 507 Rogue 352 Adventurer 148 Explorer 7 Win Type - Total 10 Types 8/0/1/1/0/0/0/0/0 Lore% 71 Gallery% 83 Achievement% 66 Wizard Run 0 Options --------- ASCII 0 Keyboard 0 Movement Numpad Keybinds 0 Fullscreen 1 Font 18/SmallcapsGlow Map View 76x50 Tactical HUD 1 Map Filters NONE Filters NONE Steam 1 RUN: 431872ff-2b16-4787-88fe-7a08ef715694